[Event "Titled Tuesday Blitz April 19 Early 2022"]
[White "Ning, Kaiyu"]
[Black "Kornyukov, Alexey"]
[WhiteFideId "8614750"]
[BlackFideId "4150457"]
[WhiteElo "2013"]
[BlackElo "2303"]
[Result "1-0"]
[Round "09"]
[TimeControl "180+1"]
[Date "2022.04.19"]
[WhiteClock "0:00:44"]
[BlackClock "0:00:03"]

1. d4 {[%clk 0:03:00]}  d5 {[%clk 0:02:57]} 2. c4 {[%clk 0:03:01]}  e6 {[%clk 0:02:57]} 3. Nf3 {[%clk 0:03:01]}  c6 {[%clk 0:02:56]} 4. e3 {[%clk 0:02:57]}  Nf6 {[%clk 0:02:49]} 5. Be2 {[%clk 0:02:56]}  Nbd7 {[%clk 0:02:48]} 6. Nc3 {[%clk 0:02:49]}  dxc4 {[%clk 0:02:44]} 7. Bxc4 {[%clk 0:02:49]}  b5 {[%clk 0:02:41]} 8. Bd3 {[%clk 0:02:50]}  a6 {[%clk 0:02:33]} 9. e4 {[%clk 0:02:47]}  c5 {[%clk 0:02:28]} 10. e5 {[%clk 0:02:29]}  cxd4 {[%clk 0:02:26]} 11. Ne2 {[%clk 0:02:29]}  Ng4 {[%clk 0:02:18]} 12. Bf4 {[%clk 0:02:27]}  Bb4+ {[%clk 0:02:00]} 13. Kf1 {[%clk 0:02:27]}  Bb7 {[%clk 0:01:51]} 14. Nexd4 {[%clk 0:02:26]}  Bc5 {[%clk 0:01:41]} 15. Qe2 {[%clk 0:02:07]}  Qb6 {[%clk 0:00:52]} 16. Rd1 {[%clk 0:01:57]}  h5 {[%clk 0:00:26]} 17. h3 {[%clk 0:01:45]}  O-O-O {[%clk 0:00:26]} 18. hxg4 {[%clk 0:00:51]}  hxg4 {[%clk 0:00:25]} 19. Rxh8 {[%clk 0:00:51]}  Rxh8 {[%clk 0:00:18]} 20. Be4 {[%clk 0:00:51]}  gxf3 {[%clk 0:00:15]} 21. Bxb7+ {[%clk 0:00:50]}  Qxb7 {[%clk 0:00:13]} 22. Nxf3 {[%clk 0:00:50]}  Rh1+ {[%clk 0:00:12]} 23. Ng1 {[%clk 0:00:50]}  Qc6 {[%clk 0:00:09]} 24. Rc1 {[%clk 0:00:44]}  Kb7 {[%clk 0:00:03]} 25. b4 {[%clk 0:00:44]} 1-0


[Site "https://www.chess.com"]

[Event "Titled Tuesday Blitz April 19 Early 2022"]
[White "Niyazgulova, Marina"]
[Black "Legenia, Artem"]
[WhiteFideId "24142573"]
[BlackFideId "14136945"]
[WhiteElo "2046"]
[BlackElo "1936"]
[Result "1/2-1/2"]
[Round "09"]
[TimeControl "180+1"]
[Date "2022.04.19"]
[WhiteClock "0:00:25"]
[BlackClock "0:00:42"]

1. d4 {[%clk 0:03:00]}  b6 {[%clk 0:02:43]} 2. c4 {[%clk 0:02:59]}  Nf6 {[%clk 0:02:42]} 3. Nc3 {[%clk 0:02:58]}  Bb7 {[%clk 0:02:43]} 4. Nf3 {[%clk 0:02:51]}  e6 {[%clk 0:02:43]} 5. Bg5 {[%clk 0:02:48]}  Bb4 {[%clk 0:02:39]} 6. e3 {[%clk 0:02:47]}  Bxc3+ {[%clk 0:02:39]} 7. bxc3 {[%clk 0:02:47]}  h6 {[%clk 0:02:37]} 8. Bxf6 {[%clk 0:02:44]}  Qxf6 {[%clk 0:02:37]} 9. Bd3 {[%clk 0:02:44]}  O-O {[%clk 0:02:29]} 10. e4 {[%clk 0:02:39]}  d6 {[%clk 0:02:28]} 11. O-O {[%clk 0:02:38]}  Nd7 {[%clk 0:02:25]} 12. Qe2 {[%clk 0:02:30]}  c5 {[%clk 0:02:24]} 13. Rfd1 {[%clk 0:02:22]}  e5 {[%clk 0:02:23]} 14. Qe3 {[%clk 0:02:04]}  exd4 {[%clk 0:02:14]} 15. cxd4 {[%clk 0:02:01]}  Rfe8 {[%clk 0:02:09]} 16. d5 {[%clk 0:01:53]}  Ne5 {[%clk 0:02:02]} 17. Nxe5 {[%clk 0:01:52]}  Qxe5 {[%clk 0:01:58]} 18. f4 {[%clk 0:01:51]}  Qh5 {[%clk 0:01:54]} 19. Re1 {[%clk 0:01:20]}  g5 {[%clk 0:01:44]} 20. g3 {[%clk 0:01:11]}  gxf4 {[%clk 0:01:38]} 21. gxf4 {[%clk 0:01:11]}  Kh8 {[%clk 0:01:31]} 22. Kh1 {[%clk 0:01:10]}  Rg8 {[%clk 0:01:28]} 23. e5 {[%clk 0:00:57]}  Rae8 {[%clk 0:01:17]} 24. Qe4 {[%clk 0:00:55]}  Rg7 {[%clk 0:01:12]} 25. Rg1 {[%clk 0:00:51]}  dxe5 {[%clk 0:01:09]} 26. Rxg7 {[%clk 0:00:46]}  Kxg7 {[%clk 0:01:09]} 27. Qh7+ {[%clk 0:00:43]}  Kf8 {[%clk 0:01:09]} 28. Qh8+ {[%clk 0:00:43]}  Ke7 {[%clk 0:01:09]} 29. Qxe5+ {[%clk 0:00:43]}  Qxe5 {[%clk 0:01:09]} 30. fxe5 {[%clk 0:00:44]}  f6 {[%clk 0:00:47]} 31. Re1 {[%clk 0:00:37]}  fxe5 {[%clk 0:00:43]} 32. Rxe5+ {[%clk 0:00:36]}  Kd8 {[%clk 0:00:43]} 33. Rxe8+ {[%clk 0:00:32]}  Kxe8 {[%clk 0:00:43]} 34. Kg1 {[%clk 0:00:32]}  b5 {[%clk 0:00:43]} 35. Kf2 {[%clk 0:00:25]}  bxc4 {[%clk 0:00:41]} 36. Bxc4 {[%clk 0:00:24]}  Ke7 {[%clk 0:00:42]} 37. Ke3 {[%clk 0:00:24]}  Kd6 {[%clk 0:00:42]} 38. Ke4 {[%clk 0:00:25]} 1/2-1/2


[Site "https://www.chess.com"]

[Event "Titled Tuesday Blitz April 19 Early 2022"]
[White "Nogerbek, Kazybek"]
[Black "Mokshanov, Alexey"]
[WhiteFideId "13710427"]
[BlackFideId "24121657"]
[WhiteElo "2466"]
[BlackElo "2141"]
[Result "0-1"]
[Round "09"]
[TimeControl "180+1"]
[Date "2022.04.19"]
[WhiteClock "0:01:02"]
[BlackClock "0:00:24"]

1. e4 {[%clk 0:03:00]}  e6 {[%clk 0:02:59]} 2. Nf3 {[%clk 0:03:00]}  d5 {[%clk 0:02:58]} 3. Nc3 {[%clk 0:03:01]}  Nf6 {[%clk 0:02:57]} 4. e5 {[%clk 0:03:01]}  Nfd7 {[%clk 0:02:57]} 5. Ne2 {[%clk 0:03:02]}  c5 {[%clk 0:02:57]} 6. c3 {[%clk 0:03:02]}  Nc6 {[%clk 0:02:53]} 7. d4 {[%clk 0:03:02]}  f6 {[%clk 0:02:51]} 8. Nf4 {[%clk 0:03:02]}  fxe5 {[%clk 0:02:38]} 9. Nxe6 {[%clk 0:03:00]}  Qb6 {[%clk 0:02:38]} 10. Nxf8 {[%clk 0:02:37]}  Rxf8 {[%clk 0:02:30]} 11. dxe5 {[%clk 0:02:37]}  Ndxe5 {[%clk 0:02:25]} 12. Nxe5 {[%clk 0:02:37]}  Nxe5 {[%clk 0:02:25]} 13. Qxd5 {[%clk 0:02:37]}  Qe6 {[%clk 0:01:52]} 14. Bb5+ {[%clk 0:02:34]}  Kf7 {[%clk 0:01:45]} 15. Qxe6+ {[%clk 0:02:30]}  Bxe6 {[%clk 0:01:46]} 16. Be3 {[%clk 0:02:30]}  b6 {[%clk 0:01:42]} 17. f3 {[%clk 0:02:30]}  Bc4 {[%clk 0:01:39]} 18. Bxc4+ {[%clk 0:02:19]}  Nxc4 {[%clk 0:01:40]} 19. Bc1 {[%clk 0:02:20]}  Rfe8+ {[%clk 0:01:40]} 20. Kf2 {[%clk 0:02:18]}  Rad8 {[%clk 0:01:40]} 21. Re1 {[%clk 0:02:17]}  Nxb2 {[%clk 0:01:34]} 22. Rxe8 {[%clk 0:02:00]}  Kxe8 {[%clk 0:01:33]} 23. Ke2 {[%clk 0:01:59]}  Nc4 {[%clk 0:01:28]} 24. Bf4 {[%clk 0:01:56]}  Rd7 {[%clk 0:01:23]} 25. h4 {[%clk 0:01:55]}  Re7+ {[%clk 0:01:22]} 26. Kd3 {[%clk 0:01:55]}  Nb2+ {[%clk 0:01:21]} 27. Kd2 {[%clk 0:01:56]}  Nc4+ {[%clk 0:01:21]} 28. Kc2 {[%clk 0:01:56]}  Kd7 {[%clk 0:01:19]} 29. h5 {[%clk 0:01:54]}  Kc6 {[%clk 0:01:16]} 30. a4 {[%clk 0:01:49]}  a6 {[%clk 0:00:59]} 31. Rd1 {[%clk 0:01:49]}  b5 {[%clk 0:00:58]} 32. axb5+ {[%clk 0:01:50]}  axb5 {[%clk 0:00:59]} 33. Rg1 {[%clk 0:01:35]}  Re2+ {[%clk 0:00:54]} 34. Kd3 {[%clk 0:01:36]}  Ra2 {[%clk 0:00:49]} 35. g4 {[%clk 0:01:36]}  Kd5 {[%clk 0:00:47]} 36. g5 {[%clk 0:01:32]}  Rf2 {[%clk 0:00:45]} 37. g6 {[%clk 0:01:16]}  h6 {[%clk 0:00:23]} 38. Rg3 {[%clk 0:01:03]}  Nb2+ {[%clk 0:00:22]} 39. Ke3 {[%clk 0:01:02]}  Nd1+ {[%clk 0:00:23]} 40. Kd3 {[%clk 0:01:02]}  c4# {[%clk 0:00:24]} 0-1


[Site "https://www.chess.com"]

[Event "Titled Tuesday Blitz April 19 Early 2022"]
[White "Oganian, Miran"]
[Black "Le, Tuan Minh"]
[WhiteFideId "4122488"]
[BlackFideId "12401153"]
[WhiteElo "2357"]
[BlackElo "2450"]
[Result "0-1"]
[Round "09"]
[TimeControl "180+1"]
[Date "2022.04.19"]
[WhiteClock "0:00:47"]
[BlackClock "0:02:17"]

1. e4 {[%clk 0:02:59]}  c5 {[%clk 0:03:00]} 2. Nf3 {[%clk 0:02:59]}  Nf6 {[%clk 0:03:00]} 3. e5 {[%clk 0:02:59]}  Nd5 {[%clk 0:03:00]} 4. c3 {[%clk 0:02:59]}  Nc6 {[%clk 0:02:59]} 5. d4 {[%clk 0:03:00]}  cxd4 {[%clk 0:03:00]} 6. cxd4 {[%clk 0:03:01]}  d6 {[%clk 0:03:00]} 7. Bc4 {[%clk 0:03:01]}  dxe5 {[%clk 0:03:01]} 8. Bxd5 {[%clk 0:03:00]}  Qxd5 {[%clk 0:03:01]} 9. Nc3 {[%clk 0:03:01]}  Qd6 {[%clk 0:03:00]} 10. d5 {[%clk 0:03:01]}  Nd4 {[%clk 0:03:01]} 11. Nxd4 {[%clk 0:03:01]}  exd4 {[%clk 0:03:01]} 12. Qxd4 {[%clk 0:03:02]}  e5 {[%clk 0:03:02]} 13. Qd2 {[%clk 0:02:59]}  Qg6 {[%clk 0:02:52]} 14. Nb5 {[%clk 0:02:37]}  Qxg2 {[%clk 0:02:34]} 15. Nc7+ {[%clk 0:01:31]}  Kd8 {[%clk 0:02:30]} 16. Rf1 {[%clk 0:00:54]}  Qe4+ {[%clk 0:02:25]} 17. Kd1 {[%clk 0:00:47]}  Bg4+ {[%clk 0:02:22]} 18. f3 {[%clk 0:00:47]}  Bxf3+ {[%clk 0:02:22]} 19. Rxf3 {[%clk 0:00:47]}  Qxf3+ {[%clk 0:02:23]} 20. Ke1 {[%clk 0:00:47]}  Qh1+ {[%clk 0:02:16]} 21. Ke2 {[%clk 0:00:47]}  Qxh2+ {[%clk 0:02:17]} 0-1


[Site "https://www.chess.com"]

[Event "Titled Tuesday Blitz April 19 Early 2022"]
[White "Okike, David"]
[Black "Schekachikhin, Maksim"]
[WhiteFideId "8500134"]
[BlackFideId "24177830"]
[WhiteElo "2232"]
[BlackElo "2230"]
[Result "0-1"]
[Round "09"]
[TimeControl "180+1"]
[Date "2022.04.19"]
[WhiteClock "0:00:16"]
[BlackClock "0:00:08"]

1. e4 {[%clk 0:03:00]}  c5 {[%clk 0:02:59]} 2. Nf3 {[%clk 0:03:00]}  e6 {[%clk 0:02:58]} 3. d4 {[%clk 0:03:00]}  cxd4 {[%clk 0:02:57]} 4. Nxd4 {[%clk 0:03:00]}  Nc6 {[%clk 0:02:56]} 5. Nc3 {[%clk 0:03:00]}  Qc7 {[%clk 0:02:52]} 6. Be3 {[%clk 0:03:00]}  a6 {[%clk 0:02:47]} 7. f3 {[%clk 0:02:59]}  Nf6 {[%clk 0:02:39]} 8. Qd2 {[%clk 0:02:59]}  Be7 {[%clk 0:02:35]} 9. O-O-O {[%clk 0:02:57]}  b5 {[%clk 0:02:33]} 10. g4 {[%clk 0:02:55]}  Nxd4 {[%clk 0:02:27]} 11. Qxd4 {[%clk 0:02:54]}  Bb7 {[%clk 0:02:26]} 12. g5 {[%clk 0:02:53]}  Nh5 {[%clk 0:02:25]} 13. Rd2 {[%clk 0:02:50]}  Rc8 {[%clk 0:02:21]} 14. a3 {[%clk 0:02:49]}  Bc5 {[%clk 0:02:20]} 15. Qxc5 {[%clk 0:02:49]}  Qxc5 {[%clk 0:02:21]} 16. Bxc5 {[%clk 0:02:49]}  Rxc5 {[%clk 0:02:21]} 17. h4 {[%clk 0:02:48]}  Ng3 {[%clk 0:02:18]} 18. Rg1 {[%clk 0:02:48]}  Nxf1 {[%clk 0:02:18]} 19. Rxf1 {[%clk 0:02:48]}  h6 {[%clk 0:02:19]} 20. f4 {[%clk 0:02:32]}  hxg5 {[%clk 0:02:18]} 21. hxg5 {[%clk 0:02:33]}  Rh4 {[%clk 0:02:14]} 22. e5 {[%clk 0:02:11]}  Rc4 {[%clk 0:02:11]} 23. Ne2 {[%clk 0:02:10]}  Bg2 {[%clk 0:02:03]} 24. Rf2 {[%clk 0:02:00]}  Be4 {[%clk 0:01:58]} 25. c3 {[%clk 0:01:59]}  Rh1+ {[%clk 0:01:56]} 26. Rd1 {[%clk 0:01:59]}  Rh4 {[%clk 0:01:50]} 27. Rd4 {[%clk 0:01:59]}  Rxd4 {[%clk 0:01:46]} 28. Nxd4 {[%clk 0:01:55]}  Ke7 {[%clk 0:01:46]} 29. Kd2 {[%clk 0:01:53]}  d6 {[%clk 0:01:44]} 30. exd6+ {[%clk 0:01:53]}  Kxd6 {[%clk 0:01:44]} 31. Ne2 {[%clk 0:01:31]}  Bd5 {[%clk 0:01:35]} 32. Nc1 {[%clk 0:01:21]}  f6 {[%clk 0:01:31]} 33. gxf6 {[%clk 0:01:19]}  gxf6 {[%clk 0:01:28]} 34. Nd3 {[%clk 0:01:19]}  Bc4 {[%clk 0:01:26]} 35. Nb4 {[%clk 0:01:16]}  a5 {[%clk 0:01:18]} 36. Nc2 {[%clk 0:01:15]}  a4 {[%clk 0:01:09]} 37. Ne3 {[%clk 0:01:15]}  Rh1 {[%clk 0:01:01]} 38. Ng4 {[%clk 0:01:10]}  Ke7 {[%clk 0:00:54]} 39. Ke3 {[%clk 0:01:04]}  Re1+ {[%clk 0:00:45]} 40. Kd4 {[%clk 0:01:03]}  f5 {[%clk 0:00:44]} 41. Ne3 {[%clk 0:00:57]}  Bb3 {[%clk 0:00:41]} 42. Ng2 {[%clk 0:00:50]}  Re4+ {[%clk 0:00:38]} 43. Kc5 {[%clk 0:00:50]}  Bc4 {[%clk 0:00:38]} 44. Nh4 {[%clk 0:00:45]}  Kf6 {[%clk 0:00:34]} 45. Ng2 {[%clk 0:00:40]}  e5 {[%clk 0:00:33]} 46. fxe5+ {[%clk 0:00:40]}  Kxe5 {[%clk 0:00:34]} 47. Rd2 {[%clk 0:00:34]}  f4 {[%clk 0:00:29]} 48. Nh4 {[%clk 0:00:34]}  Re3 {[%clk 0:00:20]} 49. Rd6 {[%clk 0:00:26]}  Rh3 {[%clk 0:00:17]} 50. Ng6+ {[%clk 0:00:25]}  Kf5 {[%clk 0:00:17]} 51. Ne7+ {[%clk 0:00:24]}  Kg4 {[%clk 0:00:15]} 52. Nd5 {[%clk 0:00:20]}  Rh5 {[%clk 0:00:14]} 53. Rg6+ {[%clk 0:00:18]}  Kh4 {[%clk 0:00:14]} 54. Rf6 {[%clk 0:00:18]}  Rxd5+ {[%clk 0:00:14]} 55. Kb4 {[%clk 0:00:18]}  Kg3 {[%clk 0:00:15]} 56. b3 {[%clk 0:00:16]}  axb3 {[%clk 0:00:14]} 57. Rg6+ {[%clk 0:00:16]}  Kf2 {[%clk 0:00:14]} 58. Rg1 {[%clk 0:00:17]}  Kxg1 {[%clk 0:00:13]} 59. a4 {[%clk 0:00:17]}  bxa4 {[%clk 0:00:08]} 60. Kxc4 {[%clk 0:00:16]} 0-1


[Site "https://www.chess.com"]

[Event "Titled Tuesday Blitz April 19 Early 2022"]
[White "Papp, Levente"]
[Black "Palachev, Petr"]
[WhiteFideId "751243"]
[BlackFideId "24129003"]
[WhiteElo "2308"]
[BlackElo "2339"]
[Result "1/2-1/2"]
[Round "09"]
[TimeControl "180+1"]
[Date "2022.04.19"]
[WhiteClock "0:00:05"]
[BlackClock "0:00:03"]

1. c4 {[%clk 0:03:00]}  e6 {[%clk 0:02:59]} 2. Nf3 {[%clk 0:02:58]}  d5 {[%clk 0:03:00]} 3. g3 {[%clk 0:02:58]}  Nf6 {[%clk 0:03:00]} 4. Bg2 {[%clk 0:02:59]}  dxc4 {[%clk 0:03:01]} 5. Na3 {[%clk 0:02:58]}  Bxa3 {[%clk 0:02:40]} 6. bxa3 {[%clk 0:02:59]}  O-O {[%clk 0:02:33]} 7. Qa4 {[%clk 0:02:43]}  Qd5 {[%clk 0:02:29]} 8. Bb2 {[%clk 0:02:28]}  Bd7 {[%clk 0:02:13]} 9. Qc2 {[%clk 0:02:25]}  Bc6 {[%clk 0:02:13]} 10. Rc1 {[%clk 0:02:08]}  b5 {[%clk 0:02:09]} 11. O-O {[%clk 0:02:04]}  Qe4 {[%clk 0:01:31]} 12. d3 {[%clk 0:01:53]}  cxd3 {[%clk 0:00:54]} 13. exd3 {[%clk 0:01:54]}  Qa4 {[%clk 0:00:54]} 14. Qc5 {[%clk 0:01:33]}  Bd5 {[%clk 0:00:39]} 15. Qe7 {[%clk 0:00:34]}  Nc6 {[%clk 0:00:28]} 16. Qxc7 {[%clk 0:00:32]}  Rac8 {[%clk 0:00:26]} 17. Qd6 {[%clk 0:00:29]}  Rfd8 {[%clk 0:00:24]} 18. Qc5 {[%clk 0:00:29]}  b4 {[%clk 0:00:17]} 19. axb4 {[%clk 0:00:23]}  Qxb4 {[%clk 0:00:18]} 20. Ba3 {[%clk 0:00:18]}  Qxc5 {[%clk 0:00:17]} 21. Bxc5 {[%clk 0:00:19]}  Bxa2 {[%clk 0:00:15]} 22. d4 {[%clk 0:00:14]}  Bd5 {[%clk 0:00:13]} 23. Ra1 {[%clk 0:00:14]}  Ra8 {[%clk 0:00:09]} 24. Ra6 {[%clk 0:00:11]}  Rdc8 {[%clk 0:00:04]} 25. Rfa1 {[%clk 0:00:11]}  h6 {[%clk 0:00:04]} 26. Nd2 {[%clk 0:00:08]}  Bxg2 {[%clk 0:00:03]} 27. Kxg2 {[%clk 0:00:09]}  Nd5 {[%clk 0:00:03]} 28. Nc4 {[%clk 0:00:08]}  g6 {[%clk 0:00:02]} 29. Nd6 {[%clk 0:00:08]}  Rc7 {[%clk 0:00:02]} 30. Nb5 {[%clk 0:00:09]}  Rcc8 {[%clk 0:00:02]} 31. Nd6 {[%clk 0:00:09]}  Rc7 {[%clk 0:00:02]} 32. Nb5 {[%clk 0:00:06]}  Rcc8 {[%clk 0:00:03]} 33. Nxa7 {[%clk 0:00:05]}  Nxa7 {[%clk 0:00:03]} 34. Rxa7 {[%clk 0:00:06]}  Rxa7 {[%clk 0:00:03]} 35. Rxa7 {[%clk 0:00:07]}  Kg7 {[%clk 0:00:03]} 36. h4 {[%clk 0:00:07]}  h5 {[%clk 0:00:04]} 37. Rb7 {[%clk 0:00:06]}  Rc6 {[%clk 0:00:04]} 38. f3 {[%clk 0:00:05]}  Ra6 {[%clk 0:00:05]} 39. g4 {[%clk 0:00:05]}  Ra2+ {[%clk 0:00:06]} 40. Kg3 {[%clk 0:00:06]}  hxg4 {[%clk 0:00:06]} 41. fxg4 {[%clk 0:00:06]}  Ra3+ {[%clk 0:00:07]} 42. Kf2 {[%clk 0:00:07]}  Ra2+ {[%clk 0:00:07]} 43. Kf3 {[%clk 0:00:07]}  Rh2 {[%clk 0:00:08]} 44. Bd6 {[%clk 0:00:06]}  Rh3+ {[%clk 0:00:08]} 45. Kg2 {[%clk 0:00:05]}  Rxh4 {[%clk 0:00:08]} 46. Be5+ {[%clk 0:00:05]}  Kf8 {[%clk 0:00:06]} 47. Kg3 {[%clk 0:00:03]}  Rh1 {[%clk 0:00:06]} 48. Bd6+ {[%clk 0:00:03]}  Ke8 {[%clk 0:00:06]} 49. Be5 {[%clk 0:00:03]}  g5 {[%clk 0:00:06]} 50. Kf3 {[%clk 0:00:01]}  f6 {[%clk 0:00:07]} 51. Bd6 {[%clk 0:00:01]}  Rf1+ {[%clk 0:00:06]} 52. Kg2 {[%clk 0:00:02]}  Rd1 {[%clk 0:00:06]} 53. Rb8+ {[%clk 0:00:01]}  Kd7 {[%clk 0:00:07]} 54. Bc5 {[%clk 0:00:02]}  Nf4+ {[%clk 0:00:05]} 55. Kf3 {[%clk 0:00:03]}  Rf1+ {[%clk 0:00:04]} 56. Ke4 {[%clk 0:00:04]}  Re1+ {[%clk 0:00:05]} 57. Kf3 {[%clk 0:00:04]}  f5 {[%clk 0:00:05]} 58. gxf5 {[%clk 0:00:04]}  exf5 {[%clk 0:00:06]} 59. Rf8 {[%clk 0:00:05]}  Ne6 {[%clk 0:00:04]} 60. Rxf5 {[%clk 0:00:04]}  Rf1+ {[%clk 0:00:05]} 61. Kg4 {[%clk 0:00:04]}  Rg1+ {[%clk 0:00:05]} 62. Kf3 {[%clk 0:00:05]}  g4+ {[%clk 0:00:05]} 63. Kf2 {[%clk 0:00:04]}  Rd1 {[%clk 0:00:04]} 64. Rd5+ {[%clk 0:00:05]}  Ke8 {[%clk 0:00:04]} 65. Kg3 {[%clk 0:00:05]}  Rg1+ {[%clk 0:00:03]} 66. Kf2 {[%clk 0:00:05]}  Rd1 {[%clk 0:00:03]} 67. Kg3 {[%clk 0:00:05]}  Rg1+ {[%clk 0:00:03]} 68. Kf2 {[%clk 0:00:05]}  Rd1 {[%clk 0:00:03]} 1/2-1/2


[Site "https://www.chess.com"]

[Event "Titled Tuesday Blitz April 19 Early 2022"]
[White "Pesotskiy, Mikhail"]
[Black "Yanayt, Eugene"]
[WhiteFideId "34164453"]
[BlackFideId "2020165"]
[WhiteElo "2010"]
[BlackElo "2046"]
[Result "1-0"]
[Round "09"]
[TimeControl "180+1"]
[Date "2022.04.19"]
[WhiteClock "0:02:03"]
[BlackClock "0:00:33"]

1. d4 {[%clk 0:02:59]}  Nf6 {[%clk 0:02:57]} 2. c4 {[%clk 0:02:59]}  g6 {[%clk 0:02:48]} 3. Nc3 {[%clk 0:03:00]}  Bg7 {[%clk 0:02:43]} 4. e4 {[%clk 0:03:00]}  d6 {[%clk 0:02:42]} 5. f3 {[%clk 0:03:01]}  O-O {[%clk 0:02:42]} 6. Be3 {[%clk 0:03:02]}  c5 {[%clk 0:02:41]} 7. dxc5 {[%clk 0:03:02]}  dxc5 {[%clk 0:02:40]} 8. Qxd8 {[%clk 0:03:03]}  Rxd8 {[%clk 0:02:40]} 9. Bxc5 {[%clk 0:03:04]}  Nc6 {[%clk 0:02:30]} 10. Nge2 {[%clk 0:03:04]}  Nd7 {[%clk 0:02:29]} 11. Be3 {[%clk 0:03:05]}  Nde5 {[%clk 0:02:28]} 12. Nf4 {[%clk 0:03:05]}  e6 {[%clk 0:02:17]} 13. Rc1 {[%clk 0:02:55]}  Bf8 {[%clk 0:01:17]} 14. Be2 {[%clk 0:02:51]}  g5 {[%clk 0:01:12]} 15. Nh5 {[%clk 0:02:24]}  Be7 {[%clk 0:01:10]} 16. O-O {[%clk 0:02:24]}  Bd7 {[%clk 0:01:07]} 17. Rfd1 {[%clk 0:02:18]}  f5 {[%clk 0:01:03]} 18. exf5 {[%clk 0:02:14]}  exf5 {[%clk 0:01:03]} 19. Nd5 {[%clk 0:02:15]}  Kf7 {[%clk 0:00:46]} 20. Nxe7 {[%clk 0:02:13]}  Nxe7 {[%clk 0:00:46]} 21. Bxg5 {[%clk 0:02:13]}  Be6 {[%clk 0:00:33]} 22. Nf4 {[%clk 0:02:03]} 1-0


[Site "https://www.chess.com"]

[Event "Titled Tuesday Blitz April 19 Early 2022"]
[White "Quirke, Jeffrey"]
[Black "Dwilewicz, Katarzyna"]
[WhiteFideId "2013029"]
[BlackFideId "1148486"]
[WhiteElo "2179"]
[BlackElo "1907"]
[Result "0-1"]
[Round "09"]
[TimeControl "180+1"]
[Date "2022.04.19"]
[WhiteClock "0:00:08"]
[BlackClock "0:00:04"]

1. d4 {[%clk 0:03:00]}  d5 {[%clk 0:02:55]} 2. c4 {[%clk 0:02:59]}  e6 {[%clk 0:02:53]} 3. Nc3 {[%clk 0:02:59]}  Bb4 {[%clk 0:02:51]} 4. cxd5 {[%clk 0:02:58]}  exd5 {[%clk 0:02:44]} 5. Bf4 {[%clk 0:02:58]}  c6 {[%clk 0:02:41]} 6. e3 {[%clk 0:02:56]}  Bd6 {[%clk 0:02:38]} 7. Bxd6 {[%clk 0:02:47]}  Qxd6 {[%clk 0:02:39]} 8. Bd3 {[%clk 0:02:47]}  Ne7 {[%clk 0:02:35]} 9. Qc2 {[%clk 0:02:44]}  b6 {[%clk 0:02:32]} 10. Nge2 {[%clk 0:02:43]}  Ba6 {[%clk 0:02:29]} 11. O-O {[%clk 0:02:40]}  Bxd3 {[%clk 0:02:24]} 12. Qxd3 {[%clk 0:02:41]}  Nd7 {[%clk 0:02:19]} 13. e4 {[%clk 0:02:15]}  dxe4 {[%clk 0:02:18]} 14. Nxe4 {[%clk 0:02:16]}  Qg6 {[%clk 0:02:06]} 15. Nf4 {[%clk 0:01:52]}  Qh6 {[%clk 0:02:05]} 16. g3 {[%clk 0:01:45]}  O-O {[%clk 0:02:05]} 17. Rfe1 {[%clk 0:01:43]}  Nf6 {[%clk 0:02:01]} 18. Nc3 {[%clk 0:01:04]}  Ned5 {[%clk 0:01:18]} 19. Ncxd5 {[%clk 0:01:03]}  Nxd5 {[%clk 0:01:13]} 20. Nxd5 {[%clk 0:01:02]}  cxd5 {[%clk 0:01:14]} 21. Re5 {[%clk 0:01:01]}  Qd6 {[%clk 0:01:13]} 22. Rae1 {[%clk 0:01:00]}  Rac8 {[%clk 0:01:11]} 23. Qf5 {[%clk 0:00:58]}  Qb4 {[%clk 0:00:58]} 24. Qd3 {[%clk 0:00:23]}  Qxb2 {[%clk 0:00:54]} 25. Rxd5 {[%clk 0:00:20]}  Qxa2 {[%clk 0:00:51]} 26. Rd7 {[%clk 0:00:19]}  Rc2 {[%clk 0:00:44]} 27. Qf5 {[%clk 0:00:14]}  g6 {[%clk 0:00:40]} 28. Qf4 {[%clk 0:00:13]}  Rfc8 {[%clk 0:00:33]} 29. Ree7 {[%clk 0:00:12]}  Rc1+ {[%clk 0:00:12]} 30. Kg2 {[%clk 0:00:12]}  Rf8 {[%clk 0:00:06]} 31. Rxa7 {[%clk 0:00:11]}  Qd5+ {[%clk 0:00:05]} 32. Qf3 {[%clk 0:00:08]}  Rg1+ {[%clk 0:00:04]} 0-1


[Site "https://www.chess.com"]

[Event "Titled Tuesday Blitz April 19 Early 2022"]
[White "Rodchenkov, Vitaly"]
[Black "Smietanska, Wiktoria"]
[WhiteFideId "4152964"]
[BlackFideId "21869359"]
[WhiteElo "2337"]
[BlackElo "1893"]
[Result "1-0"]
[Round "09"]
[TimeControl "180+1"]
[Date "2022.04.19"]
[WhiteClock "0:01:13"]
[BlackClock "0:01:32"]

1. Nf3 {[%clk 0:03:00]}  Nf6 {[%clk 0:02:59]} 2. c4 {[%clk 0:02:58]}  g6 {[%clk 0:02:58]} 3. b4 {[%clk 0:02:56]}  Bg7 {[%clk 0:02:58]} 4. Bb2 {[%clk 0:02:54]}  O-O {[%clk 0:02:59]} 5. e3 {[%clk 0:02:54]}  d6 {[%clk 0:02:59]} 6. Be2 {[%clk 0:02:51]}  e5 {[%clk 0:02:59]} 7. d3 {[%clk 0:02:50]}  Nc6 {[%clk 0:02:59]} 8. b5 {[%clk 0:02:47]}  Ne7 {[%clk 0:02:59]} 9. Nbd2 {[%clk 0:02:44]}  Nd7 {[%clk 0:03:00]} 10. Qb3 {[%clk 0:02:40]}  f5 {[%clk 0:02:59]} 11. c5+ {[%clk 0:02:35]}  d5 {[%clk 0:02:57]} 12. Rc1 {[%clk 0:02:28]}  c6 {[%clk 0:02:57]} 13. a4 {[%clk 0:02:25]}  e4 {[%clk 0:02:54]} 14. Nd4 {[%clk 0:02:23]}  Ne5 {[%clk 0:02:47]} 15. O-O {[%clk 0:02:18]}  exd3 {[%clk 0:02:31]} 16. Bxd3 {[%clk 0:02:19]}  Nxd3 {[%clk 0:02:31]} 17. Qxd3 {[%clk 0:02:20]}  f4 {[%clk 0:02:30]} 18. N2f3 {[%clk 0:02:15]}  Nf5 {[%clk 0:02:21]} 19. bxc6 {[%clk 0:02:13]}  bxc6 {[%clk 0:02:16]} 20. Nxc6 {[%clk 0:02:09]}  Qd7 {[%clk 0:02:16]} 21. Bxg7 {[%clk 0:02:05]}  Kxg7 {[%clk 0:02:13]} 22. Nce5 {[%clk 0:02:06]}  Qe6 {[%clk 0:02:13]} 23. exf4 {[%clk 0:01:59]}  Ne7 {[%clk 0:02:08]} 24. Rfe1 {[%clk 0:01:55]}  Rxf4 {[%clk 0:01:59]} 25. Nxg6 {[%clk 0:01:43]}  Qxg6 {[%clk 0:01:59]} 26. Rxe7+ {[%clk 0:01:40]}  Kf8 {[%clk 0:01:56]} 27. Qe3 {[%clk 0:01:37]}  Rf6 {[%clk 0:01:46]} 28. Re1 {[%clk 0:01:34]}  Bh3 {[%clk 0:01:44]} 29. Nh4 {[%clk 0:01:30]}  Qg4 {[%clk 0:01:38]} 30. Qxh3 {[%clk 0:01:29]}  Qf4 {[%clk 0:01:34]} 31. Nf3 {[%clk 0:01:20]}  Rh6 {[%clk 0:01:32]} 32. Qd7 {[%clk 0:01:13]} 1-0


[Site "https://www.chess.com"]